bitfinex/quotes_ETHUSD_20250905
["timestamp","ask_amount","ask_price","bid_price","bid_amount"]
[1757090151135,0.5884,4296.0,4295.8,14.5]
[1757090151331,0.5884,4296.0,4295.4,0.116]
[1757090151332,0.127,4296.0,4295.4,0.116]
[1757090151568,2.78921825,4295.9,4295.7,0.69971906]
[1757090151906,0.5918,4295.8,4295.3,14.5]
[1757090152199,2.79206527,4296.2,4295.7,2.32790092]
[1757090152500,2.79206527,4296.2,4295.5,2.32800758]
[1757090152501,2.32774849,4296.0,4295.5,2.32800758]
[1757090152693,0.116,4295.6,4295.4,2.32803149]
[1757090152869,0.116,4295.6,4295.5,2.32801769]
[1757090156568,0.116,4295.6,4295.5,2.64191769]
[1757090157715,0.116,4295.6,4295.3,0.69977782]
[1757090157716,0.7144,4295.6,4295.3,0.69977782]
[1757090158006,0.7144,4295.6,4295.2,0.004]
[1757090158007,0.9193,4295.5,4295.2,0.004]
[1757090158184,0.4614,4295.5,4295.2,0.004]
[1757090158510,2.78942174,4295.5,4295.2,0.004]
[1757090158998,2.3280811,4295.4,4295.2,0.004]
[1757090159202,2.46842609,4295.3,4295.2,0.004]
[1757090159371,2.92982609,4295.3,4295.2,0.004]
[1757090159572,0.6017,4295.3,4295.2,0.004]
[1757090159773,0.1403,4295.3,4295.2,0.004]
[1757090160104,6.73333672,4295.7,4295.2,0.004]
[1757090160282,4.4054,4295.7,4295.2,0.004]
[1757090160471,0.4614,4295.6,4295.2,0.004]
[1757090160800,0.4614,4295.6,4295.2,2.33214011]
[1757090160801,3.943,4295.5,4295.2,2.33214011]
[1757090161182,0.4614,4296.0,4295.4,2.32803425]
[1757090161400,3.943,4295.7,4295.4,0.3139]
[1757090161609,3.943,4295.7,4295.4,2.64194531]
[1757090161771,3.943,4295.7,4295.4,0.3139]
[1757090162172,0.1236,4295.5,4295.2,0.004]
[1757090162576,2.78947585,4295.4,4295.2,0.004]
[1757090162780,0.4614,4295.4,4295.2,0.004]
[1757090162985,0.127,4295.3,4295.2,0.004]
[1757090163404,0.4614,4296.0,4295.2,0.3179]
[1757090163602,3.942,4295.6,4295.2,0.3179]
[1757090163787,0.4614,4295.5,4295.2,0.004]
[1757090164178,0.4614,4296.2,4295.4,0.3139]
[1757090164481,6.26972778,4296.1,4295.5,2.32799083]
[1757090164686,6.26972778,4296.1,4295.4,0.3139]
[1757090164687,6.26972778,4296.1,4295.6,2.32795335]
[1757090164906,0.4614,4296.0,4295.3,0.4715]
[1757090165098,2.32787538,4295.8,4295.3,2.79962578]
[1757090165299,2.32791247,4295.7,4295.2,2.33212807]
[1757090165604,2.32794296,4295.7,4295.2,0.004]
[1757090165809,3.942,4296.1,4295.2,0.004]
[1757090165810,0.2872,4295.3,4295.2,0.004]
[1757090166005,3.941,4295.5,4295.2,0.004]
[1757090166373,2.78916226,4296.0,4295.2,0.004]
[1757090166574,3.941,4295.9,4295.3,0.4715]
[1757090166986,3.941,4295.9,4295.5,2.32796699]
[1757090167204,3.941,4295.9,4295.6,2.32793735]
[1757090167514,3.942,4296.0,4295.8,0.3139]
[1757090168312,3.942,4296.0,4295.8,2.64174856]
[1757090168979,3.942,4296.0,4295.8,0.3139]
[1757090169381,2.3276098,4296.3,4295.8,0.3139]
[1757090169600,3.941,4296.2,4295.8,2.64173405]
[1757090169982,0.4614,4296.5,4295.8,0.85801887]
[1757090170184,0.116,4296.3,4295.9,0.469]
[1757090170389,0.116,4296.3,4295.6,0.585]
[1757090170589,0.4924,4296.3,4295.6,2.32793605]
[1757090170789,0.116,4296.0,4295.7,2.32789573]
[1757090171484,0.116,4296.0,4295.6,2.32792507]
[1757090171898,2.93619024,4296.0,4295.3,3.116]
[1757090172097,2.93615026,4296.0,4295.5,2.32797937]
[1757090172413,0.4924,4295.9,4295.5,2.32797937]
[1757090172793,0.4924,4295.9,4295.2,1.17275823]
[1757090172794,2.49376524,4295.6,4295.2,0.70375823]
[1757090172995,0.116,4295.3,4295.2,2.33218029]
[1757090173805,0.116,4295.3,4295.2,3.09998029]
[1757090174019,0.116,4295.3,4295.2,3.64553484]
[1757090174183,3.942,4295.9,4295.2,1.78255455]
[1757090174515,0.49340001,4296.8,4295.3,3.95748126]
[1757090174716,0.00100001,4296.8,4296.7,2.32736751]
[1757090175017,0.00100001,4296.8,4296.7,3.09516751]
[1757090175833,0.00100001,4296.8,4296.3,2.32757913]
[1757090175834,0.16680001,4296.8,4296.4,2.32749233]
[1757090176034,0.4924,4296.7,4296.3,0.69956895]
[1757090176329,0.116,4296.6,4296.3,3.02715115]
[1757090176626,0.116,4296.6,4296.3,2.32753212]
[1757090177637,0.116,4296.4,4296.3,2.32753212]
[1757090178196,0.116,4296.4,4296.3,3.91009402]
[1757090178822,0.00100001,4296.8,4296.7,2.32736751]
[1757090179218,0.00100001,4296.8,4296.7,2.62616751]
[1757090179421,0.00100001,4296.8,4296.7,3.09516751]
[1757090181315,0.00100001,4296.8,4296.6,2.44338042]
[1757090181686,0.1658,4296.7,4296.6,0.116]
[1757090181995,0.1658,4296.7,4296.1,3.0]
[1757090181996,0.1658,4296.7,4296.2,3.0]
[1757090182206,0.116,4296.6,4296.5,2.32743768]
[1757090182408,0.116,4296.6,4296.5,2.79643768]
[1757090182751,0.116,4296.6,4296.5,3.09523768]
[1757090182923,0.116,4296.6,4296.5,3.90996277]
[1757090183227,0.116,4296.6,4296.5,3.09523768]
[1757090183518,0.116,4296.6,4296.1,3.941]
[1757090183519,1.2036,4296.6,4296.1,3.941]
[1757090183718,0.116,4296.4,4296.1,2.32768932]
[1757090184218,0.116,4296.4,4296.2,2.32761229]
[1757090184420,0.116,4296.4,4296.3,0.2988]
[1757090184620,0.116,4296.4,4296.3,2.6263842]
[1757090184793,0.11700001,4296.8,4296.7,2.32736751]
[1757090185201,0.11700001,4296.8,4296.7,2.62616751]
[1757090185402,0.11700001,4296.8,4296.7,3.09516751]
[1757090186590,0.00100001,4296.8,4296.7,3.09516751]
[1757090186808,0.00100001,4296.8,4296.7,3.56036751]
[1757090187016,0.00100001,4296.8,4296.7,4.55717458]
[1757090187192,0.00100001,4296.8,4296.7,8.46517458]
[1757090187999,0.00100001,4296.8,4296.7,8.34917458]
[1757090188946,0.001,4297.3,4297.2,3.11909671]
[1757090189170,0.001,4297.3,4297.2,6.11909671]
[1757090189453,0.001,4297.3,4297.2,11.35104988]
[1757090190853,0.001,4297.3,4297.2,6.94184988]
[1757090191024,0.001,4297.3,4297.2,10.88684988]
[1757090191416,0.001,4297.3,4297.2,11.35204988]
[1757090192624,0.001,4297.3,4297.2,11.53677305]
[1757090194057,0.001,4297.3,4297.2,12.32877305]
[1757090194427,0.001,4297.3,4297.2,26.82877305]
[1757090194835,0.001,4298.3,4298.2,2.3265553]
[1757090195040,0.001,4298.3,4298.2,9.82547638]
[1757090195240,0.001,4298.3,4298.2,10.57001083]
[1757090195456,0.001,4298.3,4298.2,25.07001083]
[1757090196038,0.001,4298.3,4298.2,25.16324039]
[1757090196435,0.001,4298.3,4298.2,24.39444039]
[1757090196948,0.001,4298.3,4298.2,23.86078486]
[1757090196949,0.6592,4298.3,4298.2,23.86078486]
[1757090197259,0.6592,4298.3,4298.2,16.8265553]
[1757090197440,1.0886,4298.3,4298.2,20.7675553]
[1757090197967,0.6592,4298.3,4298.2,2.3265553]
[1757090198131,1.0886,4298.3,4298.0,3.941]
[1757090198453,0.6592,4298.3,4298.2,2.3265553]
[1757090199760,0.6592,4298.3,4298.0,3.941]
[1757090199932,0.4858,4298.2,4298.0,3.941]
[1757090200127,0.6543,4298.1,4298.0,6.26766356]
[1757090200327,0.6543,4298.1,4298.0,3.939]
[1757090200532,0.6543,4298.1,4298.0,6.26566356]
[1757090200733,0.1685,4298.1,4298.0,6.26566356]
[1757090200949,0.001,4298.3,4298.2,2.3265553]
[1757090201459,0.1265,4298.3,4298.0,3.939]
[1757090201660,0.4858,4298.2,4298.0,3.939]
[1757090201829,0.129,4298.1,4298.0,3.939]
[1757090202030,0.6148,4298.1,4298.0,3.939]
[1757090202631,0.6148,4298.1,4298.0,3.938]
[1757090202874,0.6148,4298.1,4298.0,6.26466356]
[1757090203078,0.116,4298.2,4298.1,2.32660943]
[1757090203572,0.2483,4298.2,4298.0,3.936]
[1757090203779,0.7341,4298.2,4298.0,3.936]
[1757090203970,0.9483,4298.1,4298.0,3.936]
[1757090204137,1.0839,4298.1,4298.0,3.936]
[1757090204345,0.6214,4298.1,4298.0,3.936]
[1757090205278,1.20036,4298.1,4296.2,0.4537]
[1757090205432,3.937,4298.3,4297.4,0.4439]
[1757090205433,0.4858,4298.0,4297.4,0.4439]
[1757090205635,0.001,4298.3,4297.9,0.2856]
[1757090206243,0.4868,4298.3,4297.9,0.2856]
[1757090206582,0.1389,4298.0,4297.8,3.938]
[1757090207078,0.6247,4298.0,4297.8,3.938]
[1757090207281,0.4858,4297.9,4297.7,3.941]
[1757090207594,0.6279,4297.8,4297.7,3.941]
[1757090207820,0.6279,4297.8,4294.3,0.004]
[1757090207821,2.32697257,4297.5,4297.1,0.6993977]
[1757090208068,0.001,4298.3,4297.1,0.6993977]
[1757090208069,2.62389671,4297.2,4297.1,0.6993977]
[1757090208246,1.0823,4297.2,4296.8,0.025]
[1757090208450,2.32725918,4296.9,4296.8,0.025]
[1757090208839,3.40955918,4296.9,4296.8,0.025]
[1757090210670,6.40955918,4296.9,4296.8,0.025]
[1757090212435,10.35255918,4296.9,4296.8,0.025]
[1757090213843,11.14455918,4296.9,4296.8,1e-08]
[1757090216274,7.20155918,4296.9,4296.8,1e-08]
[1757090216574,11.14455918,4296.9,4296.8,1e-08]
[1757090220894,11.14055918,4296.9,4296.8,1e-08]
[1757090221188,6.90185918,4296.9,4296.8,1e-08]
[1757090221360,11.14055918,4296.9,4296.8,1e-08]
[1757090223070,7.20155918,4296.9,4296.8,1e-08]
[1757090223285,11.14055918,4296.9,4296.8,0.00400001]
[1757090223466,11.14055918,4296.9,4296.8,1e-08]
[1757090224666,3.11953002,4296.4,4296.3,1e-08]
[1757090224852,11.77253002,4296.4,4296.3,1e-08]
[1757090225056,12.85483002,4296.4,4296.3,1e-08]
[1757090226470,8.91683002,4296.4,4296.3,1e-08]
[1757090226772,12.85483002,4296.4,4296.3,1e-08]
[1757090229072,3.11980092,4295.9,4295.8,1e-08]
[1757090229274,23.81390828,4295.9,4295.8,1e-08]
[1757090229462,24.91020828,4295.9,4295.8,1e-08]
[1757090232308,24.61050828,4295.9,4295.8,1e-08]
[1757090232676,24.11070828,4295.9,4295.8,1e-08]
[1757090233193,23.81390828,4295.9,4295.8,1e-08]
[1757090233690,19.87790828,4295.9,4295.8,1e-08]
[1757090233894,23.81390828,4295.9,4295.8,1e-08]
[1757090234609,6.26380092,4295.9,4295.8,0.73930001]
[1757090234773,9.26380092,4295.9,4295.8,1.22970001]
[1757090234981,9.26380092,4295.9,4295.8,0.73930001]
[1757090235307,9.26380092,4295.9,4295.8,0.29300001]
[1757090235528,10.68850092,4295.9,4295.8,1e-08]
[1757090236811,10.18870092,4295.9,4295.8,1e-08]
[1757090237616,10.68850092,4295.9,4295.8,1e-08]
[1757090238692,10.18870092,4295.9,4295.8,1e-08]
[1757090240121,11.15050092,4295.9,4295.8,1e-08]
[1757090241723,10.68850092,4295.9,4295.8,1e-08]
[1757090242220,6.11980092,4295.9,4295.8,0.29300001]
[1757090242395,10.05580092,4295.9,4295.8,0.29300001]
[1757090243028,10.05580092,4295.9,4295.8,0.29700001]
[1757090243405,10.05680092,4295.9,4295.8,0.29700001]
[1757090246826,10.05680092,4295.9,4295.8,0.00400001]
[1757090247538,16.64444154,4295.9,4295.8,0.29700001]
[1757090248326,16.64444154,4295.9,4295.8,0.05323291]
[1757090249546,12.70844154,4295.9,4295.8,0.05323291]
[1757090249721,11.91644154,4295.9,4295.8,0.49953291]
[1757090249911,15.85244154,4295.9,4295.8,0.49953291]
[1757090250246,15.85244154,4295.9,4295.8,0.05323291]
[1757090250619,15.85244154,4295.9,4295.8,0.49953291]
[1757090251550,6.26480092,4295.9,4295.8,0.98993291]
[1757090253449,6.26480092,4295.9,4295.8,1.20789397]
[1757090253653,6.26480092,4295.9,4295.8,0.71749397]
[1757090253850,6.26480092,4295.9,4295.3,0.004]
[1757090253851,2.32807189,4295.4,4295.3,0.004]
[1757090254019,12.85171251,4295.4,4295.3,0.004]
[1757090254219,12.85171251,4295.4,4295.3,0.297]
[1757090254420,12.85171251,4295.4,4295.3,0.7433]
[1757090254622,12.85171251,4295.4,4295.3,1.2337]
[1757090254822,12.85171251,4295.4,4295.3,0.7433]
[1757090255939,12.85171251,4295.4,4295.3,0.297]
[1757090256242,0.001,4295.9,4295.3,1.2337]
[1757090256444,6.26388196,4295.8,4295.4,1.06047]
[1757090256660,6.26388196,4295.8,4295.7,0.293]
[1757090256965,6.26388196,4295.8,4295.7,1.2297]
[1757090258273,6.26388196,4295.8,4295.7,0.293]
[1757090259470,6.26388196,4295.8,4295.7,0.7289]
[1757090259836,6.26388196,4295.8,4295.7,0.293]
[1757090260647,6.26388196,4295.8,4295.7,0.7289]
[1757090261041,6.26388196,4295.8,4295.7,0.293]
[1757090261250,4.2407,4295.8,4295.3,0.4399]
[1757090261455,2.32801769,4295.5,4295.3,0.4399]
[1757090261671,6.26307189,4295.4,4295.3,0.4399]
[1757090261862,2.32807189,4295.4,4295.3,0.4399]
[1757090262063,6.26307189,4295.4,4295.3,0.7263]
[1757090262575,3.935,4295.4,4295.3,1.2198]
[1757090262754,3.935,4295.4,4295.3,1.34258]
[1757090263143,3.935,4295.4,4295.3,3.67070609]
[1757090263342,0.001,4295.9,4295.3,1.34258]
[1757090263541,3.935,4295.8,4295.5,2.32800967]
[1757090263756,0.001,4295.9,4295.7,0.2864]
[1757090264044,0.001,4295.9,4295.8,5.47271366]
[1757090264243,0.001,4295.9,4295.8,6.49483511]
[1757090265283,0.001,4295.9,4295.8,7.57323511]
[1757090265580,0.001,4295.9,4295.8,7.751285]
[1757090265747,0.001,4296.4,4296.3,3.1195842]
[1757090266089,1e-08,4296.8,4296.7,6.11936751]
[1757090266377,1e-08,4296.8,4296.7,10.34076751]
[1757090266681,1e-08,4296.8,4296.7,25.77016751]
[1757090267181,0.026,4297.8,4297.7,6.11882597]
[1757090267347,0.026,4297.8,4297.7,26.80877609]
[1757090267546,0.026,4297.8,4297.7,30.29248406]
[1757090267774,1e-08,4297.8,4297.7,30.29248406]
[1757090268002,1e-08,4297.8,4297.7,30.48490438]
[1757090268497,0.001,4298.7,4298.2,6.1185553]
[1757090268900,0.001,4298.7,4298.2,7.3343553]
[1757090269102,0.001,4298.7,4298.2,8.30045327]
[1757090270061,0.001,4298.7,4298.2,12.23445327]
[1757090273786,0.001,4298.7,4298.2,12.32767283]
[1757090275623,0.001,4298.7,4298.2,26.82767283]
[1757090276120,0.001,4298.7,4298.2,26.94367283]
[1757090280011,0.001,4298.7,4298.2,20.00967283]
[1757090280223,0.001,4298.7,4298.2,23.33217283]
[1757090280392,0.001,4298.7,4298.2,26.33217283]
[1757090280590,0.001,4298.7,4298.2,26.82567283]
[1757090280995,0.001,4298.7,4298.2,22.89367283]
[1757090281337,0.001,4298.7,4298.2,26.82567283]
[1757090284390,0.001,4298.7,4298.2,25.89527283]
[1757090284623,0.001,4298.7,4298.2,26.33117283]
[1757090286196,0.001,4298.7,4298.2,25.89527283]
[1757090287394,0.001,4298.7,4298.2,21.96427283]
[1757090287598,0.3057,4298.3,4298.2,20.88587283]
[1757090287799,0.001,4298.3,4298.2,25.10327283]
[1757090288323,0.3057,4298.3,4298.2,24.81687283]
[1757090288733,0.7897,4298.3,4298.2,16.91977486]
[1757090289042,0.3057,4298.3,4298.2,23.85077486]
[1757090289529,0.001,4298.3,4298.2,24.13937486]
[1757090290104,0.001,4298.3,4298.2,24.69567486]
[1757090290296,0.001,4298.3,4298.2,25.48767486]
[1757090290494,0.001,4298.3,4298.2,27.75558283]
[1757090292219,0.001,4298.3,4298.2,22.59228283]
[1757090292422,0.2969,4298.3,4298.2,26.23468283]
[1757090292595,0.7561,4298.3,4298.2,26.23468283]
[1757090292940,0.7561,4298.3,4298.2,23.96677486]
[1757090293697,0.2969,4298.3,4298.2,23.96677486]
[1757090294603,0.2969,4298.3,4298.2,20.03577486]
[1757090294799,1.1982,4298.3,4298.2,23.96677486]
[1757090295197,1.1982,4298.3,4298.2,20.03577486]
[1757090295399,0.7561,4298.3,4298.2,23.96677486]
[1757090295617,0.7561,4298.3,4298.2,25.67468788]
[1757090297005,1.1982,4298.3,4298.2,25.67468788]
[1757090297204,0.7561,4298.3,4298.2,23.96677486]
[1757090297612,0.2969,4298.3,4298.2,23.96677486]
[1757090299221,0.7561,4298.3,4298.2,23.96677486]
[1757090299424,0.7561,4298.3,4298.2,21.63921956]
[1757090299425,1.1982,4298.3,4298.2,21.63921956]
[1757090299623,1.1982,4298.3,4298.2,0.20921956]
[1757090299807,1.1982,4298.3,4298.2,4.02321956]
[1757090300339,1.1982,4298.3,4298.2,4.24037747]
[1757090300539,1.1982,4298.3,4298.2,6.56693277]
[1757090300845,1.1982,4298.3,4298.2,4.24037747]
[1757090302327,1.1982,4298.3,4298.2,6.56693277]
[1757090302562,0.7561,4298.3,4298.2,6.56693277]
[1757090302856,0.001,4298.3,4298.2,9.12344074]
[1757090303258,0.001,4298.3,4298.2,9.23944074]
[1757090303623,0.001,4298.3,4298.2,23.73944074]
[1757090303826,0.001,4298.3,4298.2,27.17974074]
[1757090304740,0.001,4298.3,4298.2,28.42634074]
[1757090305825,0.001,4298.3,4298.2,28.31034074]
[1757090306164,0.001,4298.3,4298.2,27.97174074]
[1757090306372,0.001,4298.3,4298.2,23.60144074]
[1757090306727,0.001,4298.3,4298.2,27.24284074]
[1757090306728,0.2969,4298.3,4298.2,27.24284074]
[1757090306961,0.2969,4298.3,4298.2,22.52084074]
[1757090307164,0.2969,4298.3,4298.2,26.45084074]
[1757090307326,0.7561,4298.3,4298.2,24.18293277]
[1757090308290,0.7561,4298.3,4298.2,3.42615767]
[1757090308499,3.52470117,4298.3,4298.2,0.31015767]
[1757090308631,3.52470117,4298.3,4298.2,0.21693811]
[1757090308632,1.1982,4298.3,4298.2,0.21693811]
[1757090308830,1.31802,4298.3,4298.2,0.21693811]
[1757090309342,1.1982,4298.3,4297.8,0.004]
[1757090309549,0.9013,4298.2,4297.8,3.934]
[1757090309842,0.2959,4297.9,4297.8,3.934]
[1757090310056,1.1972,4297.9,4297.8,6.26077183]
[1757090310648,0.7551,4297.9,4297.8,6.26077183]
[1757090311249,1.1972,4297.9,4297.8,3.934]
[1757090311768,1.1972,4297.9,4297.8,6.26077183]
[1757090312839,0.001,4298.3,4297.8,6.49050797]
[1757090313167,0.4592,4298.2,4297.8,6.20190797]
[1757090313463,0.4592,4298.2,4298.0,2.32662796]
[1757090313653,0.4592,4298.2,4298.1,2.32660943]
[1757090313857,0.001,4298.3,4298.2,2.3265553]
[1757090314256,0.2969,4298.3,4298.2,2.3265553]
[1757090314470,0.2969,4298.3,4298.1,2.32660799]
[1757090314657,0.2969,4298.3,4298.2,2.3265553]
[1757090314658,0.7561,4298.3,4298.2,2.3265553]
[1757090314860,0.2969,4298.3,4298.2,6.2565553]
[1757090315251,0.7561,4298.3,4298.2,6.2565553]
[1757090315448,0.7561,4298.3,4298.2,6.9854553]
[1757090315449,0.001,4298.3,4298.2,6.9854553]
[1757090315754,0.001,4298.3,4298.2,7.91666252]
[1757090316257,0.001,4298.3,4298.2,10.91666252]
[1757090316445,0.001,4298.3,4298.2,25.50989077]
[1757090317372,0.001,4298.3,4298.2,25.96449077]
[1757090318370,0.001,4298.3,4298.2,26.08049077]
[1757090318535,0.001,4298.3,4298.2,25.62589077]
[1757090318740,0.001,4298.3,4298.2,26.08049077]
[1757090320077,0.001,4298.3,4298.2,26.87249077]
[1757090325146,0.001,4298.3,4298.2,26.41689077]
[1757090325870,0.001,4298.3,4298.2,26.91399077]
[1757090326061,0.001,4298.3,4298.2,31.11399077]
[1757090326382,1e-08,4298.8,4298.7,2.32628469]
[1757090326541,1e-08,4298.8,4298.7,9.74381605]
[1757090326875,1e-08,4298.8,4298.7,16.05895321]
[1757090327383,1e-08,4298.8,4298.7,26.83955321]
[1757090328281,0.025,4299.8,4298.7,26.83955321]
[1757090328282,0.5056,4300.8,4300.7,2.32520287]
[1757090328448,0.5056,4300.8,4300.7,6.27745489]
[1757090328642,0.5056,4300.8,4300.7,6.25420287]
[1757090328643,0.7937,4300.8,4300.7,6.25420287]
[1757090328876,1.2266,4300.8,4300.7,6.25420287]
[1757090329695,1.2266,4300.8,4300.7,9.25420287]
[1757090329987,0.025,4300.8,4300.7,11.51533776]
[1757090330392,0.025,4300.8,4300.7,25.57243776]
[1757090331379,0.7937,4300.8,4300.7,25.28203776]
[1757090331945,0.7937,4300.8,4300.7,21.35303776]
[1757090332148,0.3131,4300.8,4300.7,25.28103776]
[1757090332378,0.025,4300.8,4300.7,25.28103776]
[1757090333388,0.3131,4300.8,4300.7,25.28103776]
[1757090333775,0.025,4300.8,4300.7,25.28103776]
[1757090333960,0.3131,4300.8,4300.7,25.28103776]
[1757090334688,0.025,4300.8,4300.7,25.28103776]
[1757090334893,0.025,4300.8,4300.7,25.57143776]
[1757090335616,0.3131,4300.8,4300.7,25.28003776]
[1757090336691,0.7937,4300.8,4300.7,21.35303776]
[1757090336864,1.2266,4300.8,4300.7,25.28003776]
[1757090337963,1.2266,4300.8,4300.7,25.97883432]
[1757090338164,1.2266,4300.8,4300.7,26.09483432]
[1757090338589,1.2266,4300.8,4300.7,22.16783432]
[1757090338862,1.2276,4300.8,4300.7,24.56699943]
[1757090339196,1.2276,4300.8,4300.7,21.543]
[1757090339716,1.2276,4300.8,4300.7,23.86820287]
[1757090340225,1.2276,4300.8,4300.6,0.69885841]
[1757090340536,1.2276,4300.8,4300.0,1.138]
[1757090340537,0.9135,4300.7,4300.0,1.138]
[1757090340704,0.12276,4300.6,4299.9,2.792]
[1757090340884,0.2881,4300.0,4299.5,0.69903265]
[1757090341086,0.9135,4299.9,4299.6,3.927]
[1757090341419,0.2881,4299.7,4299.5,2.32584457]
[1757090341721,0.721,4299.7,4299.6,3.927]
[1757090342231,1.2016,4299.7,4299.6,3.927]
[1757090342787,1.2016,4299.7,4299.4,0.69903917]
[1757090342982,0.9135,4299.6,4299.5,3.927]
[1757090343189,1.2016,4299.6,4299.5,3.927]
[1757090344716,1.2016,4299.6,4299.5,6.25285184]
[1757090344917,1.2016,4299.6,4299.5,3.927]
[1757090345088,1.2016,4299.6,4299.5,6.25285184]
[1757090345287,1.2016,4299.6,4299.5,3.927]
[1757090346531,1.2016,4299.6,4299.5,20.75285184]
[1757090346732,1.2016,4299.6,4299.5,18.427]
[1757090347231,1.2016,4299.6,4299.5,20.75285184]
[1757090347724,1.2016,4299.6,4299.5,14.5]
[1757090347936,1.2016,4299.6,4299.5,18.427]
[1757090348907,1.2016,4299.6,4299.2,3.0]
[1757090349111,0.9135,4299.5,4299.2,3.0]
[1757090349446,5.666,4300.8,4299.2,3.927]
[1757090349447,0.289,4299.3,4299.2,3.927]
[1757090349747,1.2202,4299.3,4298.9,3.927]
[1757090349944,0.9312,4299.2,4298.9,3.927]
[1757090350253,0.289,4299.0,4298.8,14.525]
[1757090350421,0.405,4299.0,4298.9,3.927]
[1757090351154,1.3362,4299.0,4298.9,3.927]
[1757090352349,1.3362,4299.0,4298.8,18.452]
[1757090352557,0.9312,4298.9,4298.8,0.025]
[1757090352730,3.25737646,4298.9,4298.8,0.025]
[1757090352932,1.2202,4298.9,4298.8,0.025]
[1757090353442,3.54637646,4298.9,4298.8,0.025]
[1757090353659,10.12032948,4298.9,4298.8,0.025]
[1757090353955,3.54637646,4298.9,4298.8,0.025]
[1757090355466,1.2202,4298.9,4298.8,0.025]
[1757090355623,0.7745,4298.9,4298.8,0.025]
[1757090356779,1.2202,4298.9,4298.8,0.025]
[1757090357241,3.54637646,4298.9,4298.8,0.025]
[1757090358500,10.12032948,4298.9,4298.8,0.025]
[1757090358805,3.54637646,4298.9,4298.8,0.029]
[1757090358967,3.10067646,4298.9,4298.8,0.029]
[1757090359175,4.7015,4298.9,4298.8,0.029]
[1757090359385,1.713,4299.6,4298.8,0.3326]
[1757090359587,0.116,4299.1,4298.8,7.59878992]
[1757090359790,0.116,4299.1,4298.8,9.47950317]
[1757090360116,0.116,4299.1,4299.0,2.32612235]
[1757090360289,0.116,4299.1,4298.9,2.79493095]
[1757090360478,0.116,4299.1,4299.0,2.32612235]
[1757090360825,3.927,4300.0,4299.0,2.32612235]
[1757090360826,0.116,4299.5,4299.4,2.32590594]
[1757090361002,2.32598746,4299.3,4298.8,0.029]
[1757090361311,0.116,4299.1,4298.9,2.32615062]
[1757090361510,0.116,4299.1,4299.0,2.32612235]
[1757090361813,0.116,4299.5,4299.3,2.32593011]
[1757090362419,0.116,4299.5,4299.2,2.32600195]
[1757090362608,0.116,4299.5,4299.3,2.32593015]
[1757090363117,0.116,4299.5,4299.4,2.62950594]
[1757090363320,2.32542604,4300.3,4299.4,2.62950594]
[1757090363321,4.06520119,4300.8,4299.4,0.84370742]
[1757090363496,0.116,4299.9,4299.8,2.32567971]
[1757090363823,0.116,4299.9,4299.8,2.62927971]
[1757090364789,0.116,4299.9,4299.8,0.3036]
[1757090365633,0.116,4299.9,4299.7,2.32574335]
[1757090365989,0.116,4299.9,4299.6,2.32576747]
[1757090366308,0.289,4299.6,4299.3,2.32592976]
[1757090366714,0.289,4299.6,4299.4,14.5]
[1757090367092,0.289,4299.6,4299.5,2.32585184]
[1757090367491,0.116,4299.9,4299.5,2.62945184]
[1757090368490,0.6015,4299.9,4299.5,2.62945184]
[1757090368934,0.6015,4299.9,4299.6,2.32579761]
[1757090369142,0.116,4299.9,4299.6,2.32579761]
[1757090369435,0.116,4299.9,4299.8,2.62928956]
[1757090369645,0.116,4300.3,4300.2,2.32545936]
[1757090369846,0.116,4300.3,4300.2,0.3036]
[1757090370437,0.405,4300.3,4299.8,14.5]
[1757090370771,0.9312,4300.2,4299.8,14.5]
[1757090370947,0.289,4299.9,4299.8,14.5]
[1757090371654,2.32526539,4300.6,4299.8,14.5]
[1757090371655,0.026,4300.8,4300.0,2.32558139]
[1757090371824,0.026,4300.8,4299.8,13.52592673]
[1757090371825,0.026,4300.8,4300.7,0.3036]
[1757090372022,0.026,4300.8,4300.7,18.7446]
[1757090372231,0.026,4300.8,4300.7,21.06980287]
[1757090372947,0.026,4300.8,4300.7,17.57430287]
[1757090373116,0.026,4300.8,4300.7,19.84221084]
[1757090374437,0.026,4300.8,4300.7,19.39671084]
[1757090374636,0.026,4300.8,4300.7,19.84221084]
[1757090375237,0.026,4300.8,4300.7,26.89346386]
[1757090375423,0.026,4300.8,4300.7,20.31951084]
[1757090375629,0.026,4300.8,4300.7,19.51271084]
[1757090376049,0.026,4300.8,4300.7,23.33571084]
[1757090376328,0.026,4300.8,4300.7,23.78121084]
[1757090379087,0.026,4300.8,4300.7,23.33571084]
[1757090379396,0.3114,4300.8,4300.0,0.4442]
[1757090379561,1.262,4300.8,4300.6,2.32525598]
[1757090379760,1.262,4300.8,4300.6,3.938]
[1757090379961,0.3114,4300.8,4300.6,3.938]
[1757090380351,0.3114,4300.8,4300.6,6.26324894]
[1757090380551,0.3114,4300.8,4300.6,3.938]
[1757090381278,0.026,4300.8,4300.7,3.56783205]
[1757090381674,0.026,4300.8,4300.7,4.01203205]
[1757090382477,0.026,4300.8,4300.7,3.56783205]
[1757090382679,0.026,4300.8,4300.7,1.24262918]
[1757090382888,0.3114,4300.8,4300.7,4.86332918]
[1757090383449,0.3114,4300.8,4300.7,21.68853205]
[1757090383683,0.3114,4300.8,4300.7,19.36332918]
[1757090383987,0.026,4300.8,4300.7,21.68853205]
[1757090384579,0.026,4300.8,4300.7,22.00483205]
[1757090385085,0.026,4300.8,4300.7,22.44903205]
[1757090385989,0.026,4300.8,4300.7,22.00483205]
[1757090386294,0.026,4300.8,4300.7,21.68853205]
[1757090386453,0.3114,4300.8,4300.7,19.36132918]